fUSD/lending_fUSD_20260429
["ID","MTS","AMOUNT","RATE_DAILY","PERIOD"]
[421306794,1777401015125,-503.6549997,0.00042542,120]
[421306795,1777401015172,-502.63589642,0.00042542,120]
[421306796,1777401015220,-554.7868943,0.00042542,120]
[421306797,1777401015267,-506.00274774,0.00042542,120]
[421306798,1777401015313,-500.0,0.00042542,120]
[421306799,1777401015359,-300.107693,0.00042542,120]
[421306800,1777401015405,-508.29669715,0.00042542,120]
[421306801,1777401015452,-500.0,0.00042542,120]
[421306802,1777401015498,-181.8024774,0.00042542,120]
[421306803,1777401015546,-548.9593009,0.00042542,120]
[421306804,1777401015593,-624.37125313,0.00042542,120]
[421306805,1777401015640,-488.92599574,0.00042542,120]
[421306806,1777401015686,-500.0,0.00042542,120]
[421306807,1777401015731,-306.50612406,0.00042542,120]
[421306808,1777401015777,-500.0,0.00042542,120]
[421306809,1777401015825,-435.08799019,0.00042542,120]
[421306810,1777401015872,-648.78659441,0.00042542,120]
[421306811,1777401015919,-500.0,0.00042542,120]
[421306812,1777401015966,-248.86761614,0.00042542,120]
[421306813,1777401016013,-512.62005559,0.00042542,120]
[421306814,1777401016061,-500.0,0.00042542,60]
[421306815,1777401016110,-500.0,0.00042542,60]
[421306816,1777401016157,-342.51030537,0.00042542,60]
[421306817,1777401016205,-500.0,0.00042542,120]
[421306818,1777401016253,-500.0,0.00042542,120]
[421306819,1777401016302,-500.0,0.00042542,120]
[421306820,1777401016351,-500.0,0.00042542,120]
[421306821,1777401016398,-453.57224233,0.00042542,120]
[421306822,1777401016446,-500.0,0.00042542,120]
[421306823,1777401016494,-500.0,0.00042542,120]
[421306824,1777401016543,-178.73260221,0.00042542,120]
[421306825,1777401016592,-500.0,0.00042542,120]
[421306826,1777401016640,-536.48278998,0.00042542,120]
[421306827,1777401016689,-519.23877775,0.00042542,120]
[421306828,1777401016736,-500.0,0.00042542,120]
[421306829,1777401016783,-500.0,0.00042542,120]
[421306830,1777401016831,-500.0,0.00042542,120]
[421306831,1777401016878,-500.0,0.00042542,120]
[421306832,1777401016925,-500.0,0.00042542,120]
[421306833,1777401016972,-500.0,0.00042542,120]
[421306834,1777401017020,-500.0,0.00042542,120]
[421306835,1777401017067,-500.0,0.00042542,120]
[421306836,1777401017115,-500.0,0.00042542,120]
[421306837,1777401017166,-418.78679423,0.00042542,120]
[421306838,1777401017212,-500.0,0.00042542,120]
[421306839,1777401017259,-500.0,0.00042542,120]
[421306840,1777401017307,-500.0,0.00042542,120]
[421306841,1777401017355,-500.0,0.00042542,120]
[421306842,1777401017402,-239.49028491,0.00042542,120]
[421306843,1777401017448,-500.0,0.00042542,120]
[421306844,1777401017496,-500.0,0.00042542,120]
[421306845,1777401017543,-500.0,0.00042542,120]
[421306846,1777401017591,-500.0,0.00042542,120]
[421306847,1777401017638,-500.0,0.00042542,120]
[421306848,1777401017688,-397.97071648,0.00042542,120]
[421306849,1777401017734,-591.92512146,0.00042542,120]
[421306850,1777401017782,-511.90520643,0.00042542,120]
[421306851,1777401017830,-500.0,0.00042542,120]
[421306852,1777401017877,-244.76647525,0.00042542,120]
[421306853,1777401017926,-550.34395448,0.00042542,120]
[421306854,1777401017974,-219.21913756,0.00042542,120]
[421306855,1777401018187,-515.67871615,0.00042542,120]
[421306856,1777401018234,-500.0,0.00042542,120]
[421306857,1777401018281,-526.99048156,0.00042542,120]
[421306858,1777401018328,-510.33158289,0.00042542,120]
[421306859,1777401018375,-500.0,0.00042542,120]
[421306860,1777401018423,-500.0,0.00042542,120]
[421306861,1777401018471,-461.6082776,0.00042542,120]
[421306862,1777401018517,-513.96673113,0.00042542,90]
[421306863,1777401018565,-500.0,0.00042542,120]
[421306864,1777401018615,-500.0,0.00042542,120]
[421306865,1777401018661,-500.0,0.00042542,120]
[421306866,1777401018708,-500.0,0.00042542,120]
[421306867,1777401018756,-500.0,0.00042542,120]
[421306868,1777401018804,-500.0,0.00042542,120]
[421306869,1777401018852,-500.0,0.00042542,120]
[421306870,1777401018900,-182.35237105,0.00042542,120]
[421306871,1777401018949,-500.0,0.00042542,120]
[421306872,1777401018997,-500.0,0.00042542,120]
[421306873,1777401019044,-500.0,0.00042542,120]
[421306874,1777401019091,-500.0,0.00042542,120]
[421306875,1777401019138,-500.0,0.00042542,120]
[421306876,1777401019185,-500.0,0.00042542,120]
[421306877,1777401019232,-500.0,0.00042542,120]
[421306878,1777401019279,-500.0,0.00042542,120]
[421306879,1777401019324,-500.0,0.00042542,120]
[421306880,1777401019371,-500.0,0.00042542,120]
[421306881,1777401019416,-500.0,0.00042542,120]
[421306882,1777401019462,-500.0,0.00042542,120]
[421306883,1777401019508,-500.0,0.00042542,120]
[421306884,1777401019554,-500.0,0.00042542,120]
[421306885,1777401019600,-565.27600306,0.00042542,120]
[421306886,1777401019645,-500.0,0.00042542,120]
[421306887,1777401019691,-500.0,0.00042542,120]
[421306888,1777401019739,-500.0,0.00042542,120]
[421306889,1777401019785,-390.12361491,0.00042542,120]
[421306890,1777401019831,-500.0,0.00042542,120]
[421306891,1777401019877,-500.0,0.00042542,120]
[421306892,1777401019924,-500.0,0.00042542,120]
[421306893,1777401019972,-500.0,0.00042542,120]
[421306894,1777401020019,-500.0,0.00042542,120]
[421306895,1777401020068,-500.02014379,0.00042542,120]
[421306896,1777401020118,-546.76,0.00042542,120]
[421306897,1777401020166,-510.03824865,0.00042542,120]
[421306898,1777401020215,-512.77951737,0.00042542,120]
[421306899,1777401020265,-500.0,0.00042542,120]
[421306900,1777401020315,-435.8,0.00042542,120]
[421306901,1777401020364,-500.0,0.00042542,90]
[421306902,1777401020414,-507.75502195,0.00042542,120]
[421306903,1777401020462,-500.0,0.00042542,90]
[421306904,1777401020512,-500.0,0.00042542,90]
[421306905,1777401020561,-500.0,0.00042542,90]
[421306906,1777401020610,-242.20935091,0.00042542,120]
[421306907,1777401020658,-500.0,0.00042542,90]
[421306908,1777401020707,-500.0,0.00042542,90]
[421306909,1777401020756,-500.0,0.00042542,120]
[421306910,1777401020804,-500.0,0.00042542,90]
[421306911,1777401020853,-367.48471448,0.00042542,120]
[421306912,1777401020902,-513.55315639,0.00042542,120]
[421306913,1777401020950,-500.0,0.00042542,90]
[421306914,1777401020999,-500.0,0.00042542,120]
[421306915,1777401021046,-500.0,0.00042542,90]
[421306916,1777401021094,-500.0,0.00042542,120]
[421306917,1777401021141,-354.15,0.00042542,90]
[421306918,1777401021189,-500.0,0.00042542,120]
[421306919,1777401021237,-500.0,0.00042542,120]
[421306920,1777401021285,-500.0,0.00042542,120]
[421306921,1777401021332,-500.0,0.00042542,120]
[421306922,1777401021379,-500.0,0.00042542,120]
[421306923,1777401021426,-349.3117401,0.00042542,120]
[421306924,1777401021472,-500.0,0.00042542,120]
[421306925,1777401021520,-375.25635825,0.00042542,120]
[421306926,1777401021567,-555.82361548,0.00042542,120]
[421306927,1777401021614,-500.0,0.00042542,120]
[421306928,1777401021661,-500.0,0.00042542,120]
[421306929,1777401021707,-571.99592475,0.00042542,120]
[421306930,1777401021756,-183.95,0.00042542,120]
[421306931,1777401021804,-500.0,0.00042542,120]
[421306932,1777401021853,-500.0,0.00042542,120]
[421306933,1777401021900,-307.28898354,0.00042542,120]
[421306934,1777401021946,-421.51379845,0.00042542,120]
[421306935,1777401021992,-500.0,0.00042542,120]
[421306936,1777401022039,-500.0,0.00042542,120]
[421306937,1777401022090,-500.0,0.00042542,120]
[421306938,1777401022141,-225.36933362,0.00042542,120]
[421306939,1777401022192,-613.91715772,0.00042542,120]
[421306940,1777401022242,-557.70991187,0.00042542,120]
[421306941,1777401022293,-500.0,0.00042542,120]
[421306942,1777401022343,-500.0,0.00042542,120]
[421306943,1777401022394,-500.0,0.00042542,120]
[421306944,1777401022446,-500.0,0.00042542,120]
[421306945,1777401022497,-365.22145505,0.00042542,120]
[421306946,1777401022547,-500.0,0.00042542,120]
[421306947,1777401022597,-512.83643727,0.00042542,120]
[421306948,1777401022645,-224.97115061,0.00042542,120]
[421306949,1777401022694,-285.20951944,0.00042542,120]
[421306950,1777401022743,-500.0,0.00042542,120]
[421306951,1777401022792,-500.0,0.00042542,120]
[421306952,1777401022842,-500.0,0.00042542,120]
[421306953,1777401022892,-500.0,0.00042542,120]
[421306954,1777401022942,-500.0,0.00042542,120]
[421306955,1777401022992,-296.36528612,0.00042542,120]
[421306956,1777401023041,-551.3165644,0.00042542,120]
[421306957,1777401023089,-189.3081182,0.00042542,120]
[421306958,1777401023137,-505.91337408,0.00042542,120]
[421306959,1777401023390,-185.57,0.00042542,30]
[421306960,1777401023440,-500.0,0.00042542,120]
[421306961,1777401023489,-500.0,0.00042542,120]
[421306962,1777401023539,-500.0,0.00042542,120]
[421306963,1777401023587,-500.0,0.00042542,120]
[421306964,1777401023635,-500.0,0.00042542,120]
[421306965,1777401023681,-500.0,0.00042542,120]
[421306966,1777401023728,-571.08287037,0.00042542,120]
[421306967,1777401023776,-341.90689743,0.00042542,120]
[421306968,1777401023825,-305.69325607,0.00042542,120]
[421306969,1777401023873,-252.40218842,0.00042542,120]
[421306970,1777401023921,-505.14258004,0.00042542,120]
[421306971,1777401023968,-500.0,0.00042542,120]
[421306972,1777401024016,-228.30508112,0.00042542,120]
[421306973,1777401024064,-3733.02,0.00042542,120]
[421306974,1777401024112,-3733.02,0.00042542,120]
[421306975,1777401024161,-3733.02,0.00042542,120]
[421306976,1777401024209,-3733.02,0.00042542,120]
[421306977,1777401024257,-3733.02,0.00042542,120]
[421306978,1777401024305,-3733.02,0.00042542,120]
[421306979,1777401024357,-3733.02,0.00042542,120]
[421306980,1777401024405,-3733.02,0.00042542,120]
[421306981,1777401024454,-3733.02,0.00042542,120]
[421306982,1777401024501,-3733.02,0.00042542,120]
[421306983,1777401024553,-3733.02,0.00042542,120]
[421306984,1777401024601,-3733.02,0.00042542,120]
[421306985,1777401024650,-3733.02,0.00042542,120]
[421306986,1777401024699,-3733.02,0.00042542,120]
[421306987,1777401024750,-207.21391544,0.00042542,120]
[421306988,1777401024799,-3733.02,0.00042542,120]
[421306989,1777401024847,-3733.02,0.00042542,120]
[421306990,1777401024895,-156.91802745,0.00042542,120]
[421306991,1777401024946,-50000.0,0.00042542,43]
[421306992,1777401024994,-3733.02,0.00042542,120]
[421306993,1777401025043,-3733.02,0.00042542,120]
[421306994,1777401025091,-3733.02,0.00042542,120]
[421306995,1777401025139,-3733.02,0.00042542,120]
[421306996,1777401025188,-3733.02,0.00042542,120]
[421306997,1777401025236,-3733.02,0.00042542,120]
[421306998,1777401025284,-547.34824918,0.00042542,120]
[421306999,1777401025335,-3733.02,0.00042542,120]
[421307000,1777401025384,-3733.16780851,0.00042542,120]
[421307001,1777401025430,-5987.66,0.00042542,120]
[421307002,1777401025478,-5987.66,0.00042542,120]
[421307003,1777401025525,-5987.66,0.00042542,120]
[421307004,1777401025573,-5987.66,0.00042542,120]
[421307005,1777401025621,-5987.66,0.00042542,120]
[421307006,1777401025669,-5987.66,0.00042542,120]
[421307007,1777401025717,-5987.66,0.00042542,120]
[421307008,1777401025765,-5987.66,0.00042542,120]
[421307009,1777401025814,-5987.66,0.00042542,120]
[421307010,1777401025864,-5987.66,0.00042542,120]
[421307011,1777401025912,-5987.66,0.00042542,120]
[421307012,1777401025960,-5987.66,0.00042542,120]
[421307013,1777401026007,-5987.66,0.00042542,120]
[421307014,1777401026054,-5987.66,0.00042542,120]
[421307015,1777401026100,-5987.66,0.00042542,120]
[421307016,1777401026146,-5987.66,0.00042542,120]
[421307017,1777401026195,-5987.66,0.00042542,120]
[421307018,1777401026241,-5987.66,0.00042542,120]
[421307019,1777401026288,-5987.66,0.00042542,120]
[421307020,1777401026336,-5987.66,0.00042542,120]
[421307021,1777401026384,-5987.66,0.00042542,120]
[421307022,1777401026432,-5987.66,0.00042542,120]
[421307023,1777401026479,-5987.66,0.00042542,120]
[421307024,1777401026526,-5987.68868194,0.00042542,120]
[421307025,1777401026573,-150.8638192,0.00042542,120]
[421307026,1777401026619,-500.0,0.00042542,120]
[421307027,1777401026669,-516.71225672,0.00042542,120]
[421307028,1777401026718,-500.0,0.00042542,120]
[421307029,1777401026766,-500.0,0.00042542,120]
[421307030,1777401026813,-165.4802945,0.00042542,120]
[421307031,1777401026860,-298.8334138,0.00042542,120]
[421307032,1777401026908,-162.91583427,0.00042542,120]
[421307033,1777401026958,-530.71368151,0.00042542,120]
[421307034,1777401027006,-550.53969594,0.00042542,120]
[421307035,1777401027054,-326.8483719,0.00042542,120]
[421307036,1777401027103,-522.72905984,0.00042542,120]
[421307037,1777401027151,-158.74835391,0.00042542,120]
[421307038,1777401027197,-500.0,0.00042542,120]
[421307039,1777401027244,-4021.41,0.00042542,120]
[421307040,1777401027291,-500.0,0.00042542,120]
[421307041,1777401027338,-500.0,0.00042542,120]
[421307042,1777401027387,-4021.41,0.00042542,120]
[421307043,1777401027436,-500.0,0.00042542,120]
[421307044,1777401027485,-278.74251057,0.00042542,120]
[421307045,1777401027534,-4021.41,0.00042542,120]
[421307046,1777401027582,-500.0,0.00042542,120]
[421307047,1777401027632,-630.33190694,0.00042542,120]
[421307048,1777401027678,-4021.41,0.00042542,120]
[421307049,1777401027725,-500.0,0.00042542,120]
[421307050,1777401027773,-630.33190694,0.00042542,120]
[421307051,1777401027828,-4021.41,0.00042542,120]
[421307052,1777401027876,-500.0,0.00042542,120]
[421307053,1777401027924,-4021.41,0.00042542,120]
[421307054,1777401027973,-500.0,0.00042542,120]
[421307055,1777401028023,-630.33190694,0.00042542,120]
[421307056,1777401028071,-4021.41,0.00042542,120]
[421307057,1777401028119,-500.0,0.00042542,120]
[421307058,1777401028168,-630.33190694,0.00042542,120]
[421307059,1777401028215,-500.0,0.00042542,120]
[421307060,1777401028265,-630.33190694,0.00042542,120]
[421307061,1777401028312,-500.0,0.00042542,120]
[421307062,1777401028362,-630.33190694,0.00042542,120]
[421307063,1777401028628,-4021.41,0.00042542,120]
[421307064,1777401028677,-500.0,0.00042542,120]
[421307065,1777401028726,-4021.41,0.00042542,120]
[421307066,1777401028777,-630.33190694,0.00042542,120]
[421307067,1777401028829,-4021.41,0.00042542,120]
[421307068,1777401028879,-330.45143996,0.00042542,120]
[421307069,1777401028927,-500.0,0.00042542,120]
[421307070,1777401028976,-630.33190694,0.00042542,120]
[421307071,1777401029022,-4021.41,0.00042542,120]
[421307072,1777401029070,-630.33190694,0.00042542,120]
[421307073,1777401029116,-500.0,0.00042542,120]
[421307074,1777401029162,-4021.41,0.00042542,120]
[421307075,1777401029208,-630.33190693,0.00042542,120]
[421307076,1777401029257,-357.07087105,0.00042542,120]
[421307077,1777401029307,-4021.41,0.00042542,120]
[421307078,1777401029360,-630.33190693,0.00042542,120]
[421307079,1777401029410,-500.0,0.00042542,120]
[421307080,1777401029458,-4021.41,0.00042542,120]
[421307081,1777401029507,-630.33190693,0.00042542,120]
[421307082,1777401029554,-500.0,0.00042542,120]
[421307083,1777401029602,-4021.41,0.00042542,120]
[421307084,1777401029650,-630.33190693,0.00042542,120]
[421307085,1777401029697,-322.23048632,0.00042542,120]
[421307086,1777401029743,-500.0,0.00042542,120]
[421307087,1777401029791,-4021.41,0.00042542,120]
[421307088,1777401029854,-630.33190693,0.00042542,120]
[421307089,1777401029905,-500.0,0.00042542,120]
[421307090,1777401029954,-4021.41,0.00042542,120]
[421307091,1777401030001,-403.97220679,0.00042542,120]
[421307092,1777401030049,-4021.41,0.00042542,120]
[421307093,1777401030099,-4021.41,0.00042542,120]
[421307094,1777401030149,-4021.41,0.00042542,120]
[421307095,1777401030199,-4021.41,0.00042542,120]
[421307096,1777401030248,-4021.41,0.00042542,120]
[421307097,1777401030296,-4021.41,0.00042542,120]
[421307098,1777401030345,-4021.5560569,0.00042542,120]
[421307099,1777401030393,-500.0,0.00042542,120]
[421307100,1777401030443,-500.0,0.00042542,120]
[421307101,1777401030491,-424.17939701,0.00042542,120]
[421307102,1777401030540,-1575.43,0.00042542,120]
[421307103,1777401030590,-1575.43,0.00042542,120]
[421307104,1777401030638,-1575.43,0.00042542,120]
[421307105,1777401030692,-1575.43,0.00042542,120]
[421307106,1777401030741,-500.0,0.00042542,120]
[421307107,1777401030796,-493.05803845,0.00042542,120]
[421307108,1777401030851,-500.0,0.00042542,31]
[421307109,1777401030906,-1575.43,0.00042542,120]
[421307110,1777401030958,-170.74791639,0.00042542,120]
[421307111,1777401031009,-500.0,0.00042542,31]
[421307112,1777401031058,-1575.43,0.00042542,120]
[421307113,1777401031109,-514.74128286,0.00042542,120]
[421307114,1777401031166,-500.0,0.00042542,31]
[421307115,1777401031217,-1575.43,0.00042542,120]
[421307116,1777401031267,-500.0,0.00042542,31]
[421307117,1777401031316,-1575.43,0.00042542,120]
[421307118,1777401031366,-500.0,0.00042542,31]
[421307119,1777401031415,-1575.43,0.00042542,120]
[421307120,1777401031464,-500.0,0.00042542,31]
[421307121,1777401031515,-1575.43,0.00042542,120]
[421307122,1777401031565,-500.0,0.00042542,31]
[421307123,1777401031615,-177.13867887,0.00042542,120]
[421307124,1777401031664,-1575.43,0.00042542,120]
[421307125,1777401031711,-281.56711104,0.00042542,31]
[421307126,1777401031759,-1575.43,0.00042542,120]
[421307127,1777401031807,-596.6554208,0.00042542,120]
[421307128,1777401031855,-273.67629236,0.00042542,120]
[421307129,1777401031902,-1575.43,0.00042542,120]
[421307130,1777401031949,-508.63658219,0.00042542,120]
[421307131,1777401031999,-1575.43,0.00042542,120]
[421307132,1777401032048,-1575.43,0.00042542,120]
[421307134,1777401032097,-1575.43,0.00042542,120]
[421307135,1777401032149,-500.0,0.00042542,120]
[421307136,1777401032199,-1575.43,0.00042542,120]
[421307137,1777401032248,-212.09714422,0.00042542,120]
[421307138,1777401032296,-500.0,0.00042542,120]
[421307139,1777401032345,-1575.43,0.00042542,120]
[421307140,1777401032393,-500.0,0.00042542,120]
[421307141,1777401032441,-1575.43,0.00042542,120]
[421307142,1777401032491,-500.0,0.00042542,120]
[421307148,1777401032540,-1575.43,0.00042542,120]
[421307155,1777401032589,-500.0,0.00042542,120]
[421307157,1777401032639,-1575.43,0.00042542,120]
[421307159,1777401032687,-500.0,0.00042542,120]
[421307160,1777401032735,-1575.43,0.00042542,120]
[421307161,1777401032783,-500.0,0.00042542,120]
[421307162,1777401032832,-1575.43,0.00042542,120]
[421307165,1777401032880,-500.0,0.00042542,120]
[421307172,1777401032928,-282.70647549,0.00042542,120]
[421307177,1777401032976,-1575.5968145,0.00042542,120]
[421307183,1777401033024,-164.37927871,0.00042542,120]
[421307189,1777401033071,-500.0,0.00042542,120]
[421307195,1777401033120,-500.0,0.00042542,120]
[421307202,1777401033170,-546.49204184,0.00042542,120]
[421307208,1777401033220,-500.0,0.00042542,120]
[421307214,1777401033270,-500.0,0.00042542,120]
[421307221,1777401033318,-500.0,0.00042542,120]
[421307227,1777401033368,-500.0,0.00042542,120]
[421307234,1777401033419,-500.0,0.00042542,120]
[421307236,1777401033468,-500.0,0.00042542,120]
[421307237,1777401033518,-500.0,0.00042542,120]
[421307238,1777401033566,-598.15177578,0.00042542,120]
[421307239,1777401033613,-242.75911345,0.00042542,120]
[421307240,1777401033659,-500.0,0.00042542,120]
[421307241,1777401033707,-477.675435,0.00042542,120]
[421307242,1777401033974,-554.00144549,0.00042542,120]
[421307243,1777401034020,-500.0,0.00042542,120]
[421307244,1777401034067,-500.0,0.00042542,120]
[421307245,1777401034115,-500.0,0.00042542,120]
[421307246,1777401034162,-516.01788289,0.00042542,120]
[421307247,1777401034208,-500.0,0.00042542,120]
[421307248,1777401034256,-500.0,0.00042542,120]
[421307249,1777401034304,-500.0,0.00042542,120]
[421307250,1777401034351,-500.0,0.00042542,120]
[421307251,1777401034397,-500.0,0.00042542,120]
[421307252,1777401034445,-585.74078941,0.00042542,120]
[421307253,1777401034492,-350.89779903,0.00042542,120]
[421307254,1777401034541,-500.0,0.00042542,120]
[421307255,1777401034589,-500.0,0.00042542,120]
[421307256,1777401034637,-500.0,0.00042542,120]
[421307257,1777401034685,-500.0,0.00042542,120]
[421307258,1777401034732,-500.0,0.00042542,120]
[421307259,1777401034781,-158.27398643,0.00042542,120]
[421307260,1777401034830,-500.0,0.00042542,120]
[421307261,1777401034877,-500.0,0.00042542,120]
[421307262,1777401034925,-581.03001468,0.00042542,120]
[421307263,1777401034973,-500.0,0.00042542,120]
[421307264,1777401035021,-500.0,0.00042542,120]
[421307265,1777401035068,-500.0,0.00042542,120]
[421307266,1777401035115,-500.0,0.00042542,120]
[421307267,1777401035162,-500.0,0.00042542,120]
[421307268,1777401035210,-500.0,0.00042542,120]
[421307269,1777401035257,-636.27429003,0.00042542,120]
[421307270,1777401035303,-513.08904514,0.00042542,120]
[421307271,1777401035350,-500.0,0.00042542,120]
[421307272,1777401035397,-500.0,0.00042542,120]
[421307273,1777401035444,-500.0,0.00042542,120]
[421307274,1777401035492,-635.04969501,0.00042542,120]
[421307275,1777401035539,-500.0,0.00042542,120]
[421307276,1777401035586,-191.28791822,0.00042542,120]
[421307277,1777401035633,-526.70744871,0.00042542,120]
[421307278,1777401035679,-511.48746076,0.00042542,120]
[421307279,1777401035728,-500.0,0.00042542,120]
[421307280,1777401035776,-500.0,0.00042542,120]
[421307281,1777401035824,-180.45912558,0.00042542,120]
[421307282,1777401035871,-500.0,0.00042542,120]
[421307283,1777401035918,-264.00179972,0.00042542,120]
[421307284,1777401035964,-500.0,0.00042542,120]
[421307285,1777401036011,-265.40460866,0.00042542,120]
[421307286,1777401036058,-500.0,0.00042542,120]
[421307287,1777401036104,-500.0,0.00042542,120]
[421307288,1777401036151,-500.0,0.00042542,120]
[421307289,1777401036199,-560.88237424,0.00042542,120]
[421307290,1777401036245,-500.0,0.00042542,120]
[421307291,1777401036291,-291.15129934,0.00042542,120]
[421307292,1777401036337,-500.0,0.00042542,120]
[421307293,1777401036384,-500.0,0.00042542,120]
[421307294,1777401036430,-500.0,0.00042542,120]
[421307295,1777401036478,-500.0,0.00042542,120]
[421307296,1777401036525,-500.0,0.00042542,120]
[421307297,1777401036574,-401.17516865,0.00042542,120]
[421307298,1777401036620,-500.0,0.00042542,120]
[421307299,1777401036666,-500.0,0.00042542,120]
[421307300,1777401036712,-500.0,0.00042542,120]
[421307301,1777401036759,-167.8555445,0.00042542,120]
[421307302,1777401036806,-500.0,0.00042542,120]
[421307303,1777401036852,-500.0,0.00042542,120]
[421307304,1777401036898,-500.0,0.00042542,120]
[421307305,1777401036943,-500.0,0.00042542,120]
[421307306,1777401036988,-500.0,0.00042542,120]
[421307307,1777401037034,-500.0,0.00042542,120]
[421307308,1777401037082,-500.0,0.00042542,120]
[421307309,1777401037130,-500.0,0.00042542,120]
[421307310,1777401037179,-500.0,0.00042542,120]
[421307311,1777401037228,-500.0,0.00042542,120]
[421307312,1777401037276,-500.0,0.00042542,120]
[421307313,1777401037324,-500.0,0.00042542,120]
[421307314,1777401037373,-350.84935667,0.00042542,120]
[421307315,1777401037421,-525.84686223,0.00042542,120]
[421307316,1777401037470,-500.0,0.00042542,120]
[421307317,1777401037520,-500.0,0.00042542,120]
[421307318,1777401037569,-500.0,0.00042542,120]
[421307319,1777401037619,-500.0,0.00042542,120]
[421307320,1777401037669,-208.437723,0.00042542,120]
[421307321,1777401037718,-500.0,0.00042542,120]
[421307322,1777401037768,-500.0,0.00042542,120]
[421307323,1777401037817,-500.0,0.00042542,120]
[421307324,1777401037866,-500.0,0.00042542,120]
[421307325,1777401037918,-547.04579015,0.00042542,120]
[421307326,1777401037966,-500.0,0.00042542,120]
[421307331,1777401038018,-500.0,0.00042542,120]
[421307338,1777401038069,-500.0,0.00042542,120]
[421307341,1777401038122,-151.0,0.00042542,30]
[421307342,1777401038170,-368.47023547,0.00042542,120]
[421307343,1777401038220,-500.0,0.00042542,120]
[421307344,1777401038267,-500.0,0.00042542,120]
[421307347,1777401038314,-500.0,0.00042542,120]
[421307348,1777401038360,-500.0,0.00042542,120]
[421307349,1777401038407,-500.0,0.00042542,120]
[421307350,1777401038454,-500.0,0.00042542,120]
[421307351,1777401038500,-500.0,0.00042542,120]
[421307352,1777401038549,-152.2225605,0.00042542,120]
[421307353,1777401038597,-500.0,0.00042542,120]
[421307354,1777401038644,-500.0,0.00042542,120]
[421307355,1777401038690,-500.0,0.00042542,120]
[421307356,1777401038737,-500.0,0.00042542,120]
[421307358,1777401038785,-500.0,0.00042542,120]
[421307359,1777401038834,-500.0,0.00042542,120]
[421307360,1777401038882,-500.0,0.00042542,120]
[421307383,1777401039119,-500.0,0.00042542,120]
[421307384,1777401039167,-500.0,0.00042542,120]
[421307385,1777401039215,-500.0,0.00042542,120]
[421307386,1777401039263,-500.0,0.00042542,120]
[421307387,1777401039312,-500.0,0.00042542,120]
[421307388,1777401039360,-500.0,0.00042542,120]
[421307389,1777401039409,-547.86569267,0.00042542,120]
[421307390,1777401039456,-500.0,0.00042542,120]
[421307391,1777401039506,-500.0,0.00042542,120]
[421307392,1777401039555,-500.0,0.00042542,30]
[421307393,1777401039604,-500.0,0.00042542,120]
[421307394,1777401039653,-491.7773493,0.00042542,120]
[421307395,1777401039702,-500.0,0.00042542,30]
[421307396,1777401039751,-500.0,0.00042542,120]
[421307397,1777401039799,-407.98712338,0.00042542,30]
[421307398,1777401039846,-500.0,0.00042542,120]
[421307399,1777401039895,-277.58272363,0.00042542,120]
[421307400,1777401039944,-217.59163134,0.00042542,120]
[421307401,1777401039992,-500.0,0.00042542,120]
[421307402,1777401040041,-500.0,0.00042542,120]
[421307403,1777401040088,-332.66747951,0.00042542,120]
[421307404,1777401040139,-500.0,0.00042542,120]
[421307405,1777401040190,-500.0,0.00042542,120]